[Event "*** SCC Grand Prix: Titled Tuesday Blitz"]
[Site "Chess.com"]
[Date "2020.07.07"]
[Round "4"]
[White "Fusikk"]
[Black "EvgenyT"]
[Result "0-1"]
[WhiteElo "2555"]
[BlackElo "2875"]
[TimeControl "180+1"]
[EndTime "10:40:48 PDT"]
[Termination "EvgenyT won on time"]

1. e4 {[%clk 0:03:00.9]} 1... c6 {[%clk 0:02:59.9]} 2. d4 {[%clk 0:02:59.6]}
2... d5 {[%clk 0:02:59.7]} 3. exd5 {[%clk 0:03:00.5]} 3... cxd5 {[%clk
0:02:59.7]} 4. Bd3 {[%clk 0:02:59.4]} 4... Nc6 {[%clk 0:02:59.3]} 5. c3 {[%clk
0:02:59.5]} 5... g6 {[%clk 0:02:59.2]} 6. Ne2 {[%clk 0:02:58.5]} 6... Nf6 {[%clk
0:02:56.3]} 7. Nd2 {[%clk 0:02:58]} 7... Bf5 {[%clk 0:02:55.1]} 8. Bxf5 {[%clk
0:02:57.7]} 8... gxf5 {[%clk 0:02:55]} 9. Ng3 {[%clk 0:02:58.6]} 9... e6 {[%clk
0:02:54]} 10. Nf3 {[%clk 0:02:56]} 10... Qc7 {[%clk 0:02:47.2]} 11. O-O {[%clk
0:02:24.4]} 11... h5 {[%clk 0:02:42.3]} 12. Bg5 {[%clk 0:02:16.7]} 12... Ne4
{[%clk 0:02:39.8]} 13. Bh4 {[%clk 0:02:16.7]} 13... Be7 {[%clk 0:02:31.7]} 14.
Bxe7 {[%clk 0:02:15.5]} 14... Qxe7 {[%clk 0:02:31.4]} 15. Ne2 {[%clk 0:02:04.7]}
15... O-O-O {[%clk 0:02:25.6]} 16. Nf4 {[%clk 0:02:03.6]} 16... Qc7 {[%clk
0:02:23.9]} 17. Nd3 {[%clk 0:02:02.7]} 17... Rdg8 {[%clk 0:02:20.9]} 18. Nfe5
{[%clk 0:01:58.5]} 18... Nxe5 {[%clk 0:02:19.2]} 19. dxe5 {[%clk 0:01:25.2]}
19... Kb8 {[%clk 0:02:09.5]} 20. f3 {[%clk 0:01:23.9]} 20... Nc5 {[%clk
0:02:08.9]} 21. Nxc5 {[%clk 0:01:24]} 21... Qxc5+ {[%clk 0:02:08.6]} 22. Qd4
{[%clk 0:01:24.9]} 22... Qc7 {[%clk 0:01:57.9]} 23. a4 {[%clk 0:00:58]} 23... h4
{[%clk 0:01:54.3]} 24. h3 {[%clk 0:00:55.6]} 24... Rc8 {[%clk 0:01:52.1]} 25. a5
{[%clk 0:00:52.9]} 25... Qc4 {[%clk 0:01:40.8]} 26. Ra4 {[%clk 0:00:38.1]} 26...
Qe2 {[%clk 0:01:39.6]} 27. Rf2 {[%clk 0:00:32.2]} 27... Qe1+ {[%clk 0:01:37]}
28. Rf1 {[%clk 0:00:32.5]} 28... Qg3 {[%clk 0:01:26]} 29. Qf4 {[%clk 0:00:29]}
29... Qg7 {[%clk 0:01:06.2]} 30. Rf2 {[%clk 0:00:21.8]} 30... Rc6 {[%clk
0:01:05.2]} 31. Rb4 {[%clk 0:00:20.9]} 31... a6 {[%clk 0:01:00.5]} 32. Rb6
{[%clk 0:00:16]} 32... Rc4 {[%clk 0:00:54.8]} 33. Qe3 {[%clk 0:00:12.5]} 33...
Qf8 {[%clk 0:00:41.1]} 34. b3 {[%clk 0:00:11.6]} 34... Qc5 {[%clk 0:00:40.1]}
35. Qxc5 {[%clk 0:00:10.7]} 35... Rxc5 {[%clk 0:00:40]} 36. Rc2 {[%clk
0:00:08.9]} 36... Rxa5 {[%clk 0:00:38.2]} 37. Rd6 {[%clk 0:00:08.7]} 37... Kc7
{[%clk 0:00:34.1]} 38. c4 {[%clk 0:00:08.7]} 38... Rc5 {[%clk 0:00:34]} 39. Rb2
{[%clk 0:00:05.1]} 39... dxc4 {[%clk 0:00:31]} 40. bxc4 {[%clk 0:00:06]} 40...
Rxc4 {[%clk 0:00:30.3]} 41. Rbd2 {[%clk 0:00:04.5]} 41... Kb8 {[%clk 0:00:28]}
42. Rd7 {[%clk 0:00:04.6]} 42... Rc7 {[%clk 0:00:27.8]} 43. R7d6 {[%clk
0:00:05]} 43... Rc5 {[%clk 0:00:21.3]} 44. Rd7 {[%clk 0:00:04.8]} 44... Rc7
{[%clk 0:00:19.5]} 45. R7d6 {[%clk 0:00:03.9]} 45... Ka7 {[%clk 0:00:19.8]} 46.
Rb2 {[%clk 0:00:03.6]} 46... Rb8 {[%clk 0:00:14.7]} 47. Rb4 {[%clk 0:00:03.6]}
47... b5 {[%clk 0:00:13.9]} 48. Rxh4 {[%clk 0:00:03]} 48... b4 {[%clk
0:00:13.9]} 49. Rd2 {[%clk 0:00:02.2]} 49... b3 {[%clk 0:00:13.8]} 50. Rb2
{[%clk 0:00:02.8]} 50... Rc2 {[%clk 0:00:13.6]} 51. Rb1 {[%clk 0:00:01.5]} 51...
b2 {[%clk 0:00:13.8]} 52. Rd4 {[%clk 0:00:02]} 52... Rc1+ {[%clk 0:00:13.8]} 53.
Rd1 {[%clk 0:00:02.4]} 53... Rxd1+ {[%clk 0:00:14.1]} 54. Rxd1 {[%clk
0:00:03.3]} 54... b1=Q {[%clk 0:00:14.6]} 0-1

[Event "*** SCC Grand Prix: Titled Tuesday Blitz"]
[Site "Chess.com"]
[Date "2020.07.07"]
[Round "4"]
[White "kuban1991"]
[Black "Orest_Vovk"]
[Result "0-1"]
[WhiteElo "2751"]
[BlackElo "2531"]
[TimeControl "180+1"]
[EndTime "10:40:49 PDT"]
[Termination "Orest_Vovk won on time"]

1. Nf3 {[%clk 0:03:00.9]} 1... h6 {[%clk 0:02:59.6]} 2. d4 {[%clk 0:02:59]} 2...
g5 {[%clk 0:02:59.6]} 3. Nc3 {[%clk 0:02:58.9]} 3... Bg7 {[%clk 0:02:59.7]} 4.
e4 {[%clk 0:02:58.5]} 4... c5 {[%clk 0:02:59.5]} 5. Be3 {[%clk 0:02:56.8]} 5...
cxd4 {[%clk 0:02:54.1]} 6. Bxd4 {[%clk 0:02:57.7]} 6... Bxd4 {[%clk 0:02:52]} 7.
Nxd4 {[%clk 0:02:58.1]} 7... Nc6 {[%clk 0:02:45.6]} 8. h4 {[%clk 0:02:57.4]}
8... g4 {[%clk 0:02:28.5]} 9. Nb3 {[%clk 0:02:44.5]} 9... d6 {[%clk 0:02:24.8]}
10. Be2 {[%clk 0:02:42.5]} 10... Nf6 {[%clk 0:02:23.8]} 11. Qd2 {[%clk
0:02:40.9]} 11... Be6 {[%clk 0:02:17.6]} 12. O-O-O {[%clk 0:02:39.9]} 12... Qb6
{[%clk 0:02:07.6]} 13. Rhf1 {[%clk 0:02:38.6]} 13... a5 {[%clk 0:01:58.6]} 14.
Bb5 {[%clk 0:02:34]} 14... Kf8 {[%clk 0:01:47.2]} 15. Kb1 {[%clk 0:02:26.1]}
15... a4 {[%clk 0:01:32.8]} 16. Bxa4 {[%clk 0:02:20.5]} 16... Nxe4 {[%clk
0:01:28.5]} 17. Nxe4 {[%clk 0:02:14.6]} 17... Rxa4 {[%clk 0:01:28.4]} 18. Nc3
{[%clk 0:02:14.3]} 18... Rb4 {[%clk 0:01:18.3]} 19. a3 {[%clk 0:02:01.9]} 19...
Rc4 {[%clk 0:01:16.6]} 20. h5 {[%clk 0:01:50]} 20... Bf5 {[%clk 0:01:00.7]} 21.
Ka2 {[%clk 0:01:33.3]} 21... Qa6 {[%clk 0:00:47.9]} 22. Nd5 {[%clk 0:01:24.2]}
22... Rxc2 {[%clk 0:00:36.7]} 23. Qf4 {[%clk 0:01:01.8]} 23... Be6 {[%clk
0:00:35.7]} 24. Rfe1 {[%clk 0:01:01.3]} 24... Bxd5 {[%clk 0:00:31.7]} 25. Rxd5
{[%clk 0:01:02.2]} 25... Rc4 {[%clk 0:00:19.5]} 26. Qd2 {[%clk 0:00:40]} 26...
Nb4+ {[%clk 0:00:18.3]} 27. Kb1 {[%clk 0:00:39.9]} 27... Nxd5 {[%clk 0:00:18.3]}
28. Qxd5 {[%clk 0:00:40.8]} 28... Qc6 {[%clk 0:00:18.2]} 29. Qf5 {[%clk
0:00:35.5]} 29... Rg8 {[%clk 0:00:15.4]} 30. Na5 {[%clk 0:00:31.5]} 30... Qc5
{[%clk 0:00:13.5]} 31. Qxc5 {[%clk 0:00:18.5]} 31... Rxc5 {[%clk 0:00:13.4]} 32.
Nxb7 {[%clk 0:00:16.7]} 32... Rb5 {[%clk 0:00:11.5]} 33. Nd8 {[%clk 0:00:16.4]}
33... Rb6 {[%clk 0:00:10.9]} 34. Rc1 {[%clk 0:00:15.5]} 34... Ke8 {[%clk
0:00:10.5]} 35. Nc6 {[%clk 0:00:15.2]} 35... Kd7 {[%clk 0:00:10.1]} 36. Nd4
{[%clk 0:00:10.9]} 36... Rg5 {[%clk 0:00:09.8]} 37. b4 {[%clk 0:00:09.9]} 37...
Rxh5 {[%clk 0:00:09.4]} 38. Kb2 {[%clk 0:00:08.6]} 38... Rd5 {[%clk 0:00:08.9]}
39. Nb3 {[%clk 0:00:06.6]} 39... e5 {[%clk 0:00:07.4]} 40. Rh1 {[%clk
0:00:06.2]} 40... e4 {[%clk 0:00:03.3]} 41. Rxh6 {[%clk 0:00:05.7]} 41... Rf5
{[%clk 0:00:03.9]} 42. Nd4 {[%clk 0:00:03.9]} 42... Rxf2+ {[%clk 0:00:03.8]} 43.
Kb3 {[%clk 0:00:03.8]} 43... e3 {[%clk 0:00:04.2]} 44. Rh4 {[%clk 0:00:02.6]}
44... e2 {[%clk 0:00:04.3]} 45. Rxg4 {[%clk 0:00:02.4]} 45... e1=Q {[%clk
0:00:03.6]} 0-1

[Event "*** SCC Grand Prix: Titled Tuesday Blitz"]
[Site "Chess.com"]
[Date "2020.07.07"]
[Round "4"]
[White "Srisshhhtea"]
[Black "BakaPG"]
[Result "1-0"]
[WhiteElo "2505"]
[BlackElo "2653"]
[TimeControl "180+1"]
[EndTime "10:40:54 PDT"]
[Termination "Srisshhhtea won by resignation"]

1. d4 {[%clk 0:03:00.9]} 1... d5 {[%clk 0:02:58]} 2. c4 {[%clk 0:02:58.3]} 2...
c6 {[%clk 0:02:57.9]} 3. Nc3 {[%clk 0:02:48.1]} 3... Nf6 {[%clk 0:02:56.1]} 4.
Nf3 {[%clk 0:02:46.8]} 4... e6 {[%clk 0:02:56.2]} 5. e3 {[%clk 0:02:44.7]} 5...
Nbd7 {[%clk 0:02:55.6]} 6. Qc2 {[%clk 0:02:42.4]} 6... Bd6 {[%clk 0:02:54.3]} 7.
b3 {[%clk 0:02:42.4]} 7... O-O {[%clk 0:02:52]} 8. Be2 {[%clk 0:02:40.1]} 8...
Qe7 {[%clk 0:02:49.9]} 9. O-O {[%clk 0:02:39.3]} 9... dxc4 {[%clk 0:02:49.6]}
10. bxc4 {[%clk 0:02:39]} 10... e5 {[%clk 0:02:49.8]} 11. h3 {[%clk 0:02:34.2]}
11... Re8 {[%clk 0:02:47.3]} 12. Bb2 {[%clk 0:02:30.3]} 12... e4 {[%clk
0:02:45.1]} 13. Nd2 {[%clk 0:02:28.4]} 13... b6 {[%clk 0:02:44.7]} 14. Rae1
{[%clk 0:02:20.5]} 14... Nf8 {[%clk 0:02:42.5]} 15. Qb1 {[%clk 0:02:16.9]} 15...
Bf5 {[%clk 0:02:40.6]} 16. Bd1 {[%clk 0:02:14.5]} 16... Bg6 {[%clk 0:02:39.4]}
17. Ba4 {[%clk 0:02:10.4]} 17... Bc7 {[%clk 0:02:25.1]} 18. Ne2 {[%clk
0:02:03.2]} 18... a6 {[%clk 0:02:21.7]} 19. Nf4 {[%clk 0:01:46.2]} 19... b5
{[%clk 0:02:12.2]} 20. Bc2 {[%clk 0:01:42.2]} 20... Rab8 {[%clk 0:02:08.8]} 21.
c5 {[%clk 0:01:40.8]} 21... h5 {[%clk 0:01:54.2]} 22. Nxg6 {[%clk 0:01:20.6]}
22... Nxg6 {[%clk 0:01:53]} 23. f4 {[%clk 0:01:21.2]} 23... exf3 {[%clk
0:01:43.2]} 24. Nxf3 {[%clk 0:01:22.1]} 24... Ne4 {[%clk 0:01:39.3]} 25. Ne5
{[%clk 0:01:17.6]} 25... Nd2 {[%clk 0:01:19.2]} 26. Nxg6 {[%clk 0:01:14.7]}
26... fxg6 {[%clk 0:01:16.6]} 27. Qd1 {[%clk 0:01:12]} 27... Nxf1 {[%clk
0:01:15.8]} 28. Bxg6 {[%clk 0:01:06.7]} 28... Bh2+ {[%clk 0:01:03]} 29. Kh1
{[%clk 0:01:01.3]} 29... Rf8 {[%clk 0:00:51.7]} 30. e4 {[%clk 0:00:52.8]} 30...
Qg5 {[%clk 0:00:45.6]} 31. Bf5 {[%clk 0:00:47.3]} 31... Ne3 {[%clk 0:00:41]} 32.
Qb3+ {[%clk 0:00:46.2]} 32... Nc4 {[%clk 0:00:39.4]} 33. Kxh2 {[%clk 0:00:44.1]}
33... Rbe8 {[%clk 0:00:39.4]} 34. Bc1 {[%clk 0:00:40.2]} 34... Qd8 {[%clk
0:00:31.7]} 35. Qd1 {[%clk 0:00:30.4]} 35... Qc7+ {[%clk 0:00:18.9]} 36. Kh1
{[%clk 0:00:28.8]} 36... Qf7 {[%clk 0:00:19.4]} 37. Rf1 {[%clk 0:00:24.7]} 37...
g6 {[%clk 0:00:19.4]} 38. Bh6 {[%clk 0:00:18.3]} 38... gxf5 {[%clk 0:00:19.3]}
39. Bxf8 {[%clk 0:00:18]} 39... Qxf8 {[%clk 0:00:15.9]} 40. Rxf5 {[%clk
0:00:18.2]} 40... Qg7 {[%clk 0:00:16.1]} 41. Qxh5 {[%clk 0:00:16.6]} 41... Rf8
{[%clk 0:00:14.4]} 42. Rg5 {[%clk 0:00:15.9]} 42... Rf1+ {[%clk 0:00:13.8]} 43.
Kh2 {[%clk 0:00:16.2]} 43... Rf6 {[%clk 0:00:12.6]} 44. Rxg7+ {[%clk 0:00:16]}
44... Kxg7 {[%clk 0:00:13.2]} 45. Qg5+ {[%clk 0:00:15.7]} 45... Kf7 {[%clk
0:00:13]} 46. d5 {[%clk 0:00:12.5]} 46... cxd5 {[%clk 0:00:11.4]} 47. exd5
{[%clk 0:00:13.4]} 47... Rg6 {[%clk 0:00:11.7]} 48. Qf5+ {[%clk 0:00:12.6]}
48... Rf6 {[%clk 0:00:11.8]} 49. Qd7+ {[%clk 0:00:12.5]} 49... Kg6 {[%clk
0:00:11.6]} 50. c6 {[%clk 0:00:12.9]} 50... Ne5 {[%clk 0:00:11.2]} 51. Qe8+
{[%clk 0:00:11.6]} 51... Kf5 {[%clk 0:00:11]} 52. g4+ {[%clk 0:00:12.1]} 52...
Ke4 {[%clk 0:00:10.1]} 53. c7 {[%clk 0:00:12.2]} 53... Rf2+ {[%clk 0:00:09.8]}
54. Kg3 {[%clk 0:00:11.9]} 54... Rf3+ {[%clk 0:00:09.8]} 55. Kg2 {[%clk
0:00:12.2]} 55... Rc3 {[%clk 0:00:08.9]} 56. c8=Q {[%clk 0:00:11.3]} 1-0

[Event "*** SCC Grand Prix: Titled Tuesday Blitz"]
[Site "Chess.com"]
[Date "2020.07.07"]
[Round "4"]
[White "Ceejay271"]
[Black "TigranMukhutdinov"]
[Result "0-1"]
[WhiteElo "2328"]
[BlackElo "2521"]
[TimeControl "180+1"]
[EndTime "10:40:54 PDT"]
[Termination "TigranMukhutdinov won on time"]

1. c4 {[%clk 0:03:00.9]} 1... e5 {[%clk 0:02:59.5]} 2. g3 {[%clk 0:02:57.7]}
2... Nf6 {[%clk 0:02:57.9]} 3. Nf3 {[%clk 0:02:57.6]} 3... Nc6 {[%clk
0:02:58.5]} 4. Bg2 {[%clk 0:02:54.3]} 4... h6 {[%clk 0:02:48.4]} 5. O-O {[%clk
0:02:49.5]} 5... Bc5 {[%clk 0:02:47.9]} 6. Nc3 {[%clk 0:02:46.4]} 6... d6 {[%clk
0:02:47.2]} 7. Na4 {[%clk 0:02:43.5]} 7... Bb6 {[%clk 0:02:45.7]} 8. Nxb6 {[%clk
0:02:42.4]} 8... axb6 {[%clk 0:02:46.6]} 9. d4 {[%clk 0:02:36.7]} 9... O-O
{[%clk 0:02:42.9]} 10. dxe5 {[%clk 0:02:17.3]} 10... Nxe5 {[%clk 0:02:42.1]} 11.
Nxe5 {[%clk 0:02:16.4]} 11... dxe5 {[%clk 0:02:43]} 12. b3 {[%clk 0:02:06.2]}
12... c6 {[%clk 0:02:33.9]} 13. Qxd8 {[%clk 0:02:04.8]} 13... Rxd8 {[%clk
0:02:33.7]} 14. Bb2 {[%clk 0:02:01.9]} 14... Re8 {[%clk 0:02:29.4]} 15. Rfd1
{[%clk 0:01:58.6]} 15... Bg4 {[%clk 0:02:29.2]} 16. Kf1 {[%clk 0:01:57.7]} 16...
Nd7 {[%clk 0:02:23]} 17. Rd6 {[%clk 0:01:43.4]} 17... f6 {[%clk 0:02:18.6]} 18.
a3 {[%clk 0:01:33.3]} 18... Nc5 {[%clk 0:02:14.8]} 19. b4 {[%clk 0:01:29.7]}
19... Na4 {[%clk 0:02:01.1]} 20. Bc1 {[%clk 0:01:28]} 20... Rad8 {[%clk
0:01:57.1]} 21. Rxd8 {[%clk 0:01:23]} 21... Rxd8 {[%clk 0:01:58]} 22. Be3 {[%clk
0:01:22.8]} 22... Nc3 {[%clk 0:01:54]} 23. Bxb6 {[%clk 0:01:18]} 23... Rd2
{[%clk 0:01:47.9]} 24. Bf3 {[%clk 0:01:08.4]} 24... Be6 {[%clk 0:01:36.6]} 25.
Be3 {[%clk 0:01:01.3]} 25... Rc2 {[%clk 0:01:33.6]} 26. c5 {[%clk 0:00:50.7]}
26... e4 {[%clk 0:01:27.1]} 27. Bg2 {[%clk 0:00:47.7]} 27... Bc4 {[%clk
0:01:27.2]} 28. Rc1 {[%clk 0:00:44.2]} 28... Rxc1+ {[%clk 0:01:27.5]} 29. Bxc1
{[%clk 0:00:43.7]} 29... Nxe2 {[%clk 0:01:28.4]} 30. Be3 {[%clk 0:00:39.8]}
30... f5 {[%clk 0:01:10.7]} 31. Ke1 {[%clk 0:00:33.7]} 31... Nc3 {[%clk
0:01:10.8]} 32. Bd4 {[%clk 0:00:19.8]} 32... Na4 {[%clk 0:00:56.6]} 33. g4
{[%clk 0:00:18.8]} 33... g6 {[%clk 0:00:55.1]} 34. h4 {[%clk 0:00:18.3]} 34...
fxg4 {[%clk 0:00:45.9]} 35. Bxe4 {[%clk 0:00:17.7]} 35... Kf7 {[%clk 0:00:46.5]}
36. Kd2 {[%clk 0:00:17.5]} 36... h5 {[%clk 0:00:43]} 37. Ke3 {[%clk 0:00:17.5]}
37... Be6 {[%clk 0:00:38.7]} 38. Kf4 {[%clk 0:00:17.6]} 38... Bd5 {[%clk
0:00:30.3]} 39. Bxd5+ {[%clk 0:00:16.8]} 39... cxd5 {[%clk 0:00:31.2]} 40. Ke5
{[%clk 0:00:15.9]} 40... g5 {[%clk 0:00:29.8]} 41. hxg5 {[%clk 0:00:15]} 41...
h4 {[%clk 0:00:30.2]} 42. Kf4 {[%clk 0:00:15.4]} 42... h3 {[%clk 0:00:30]} 43.
Kg3 {[%clk 0:00:14.8]} 43... Kg6 {[%clk 0:00:30.3]} 44. Be5 {[%clk 0:00:13.7]}
44... Kxg5 {[%clk 0:00:28.8]} 45. Bd4 {[%clk 0:00:10.8]} 45... Kf5 {[%clk
0:00:28.3]} 46. Bh8 {[%clk 0:00:10.1]} 46... Ke4 {[%clk 0:00:27.4]} 47. Bg7
{[%clk 0:00:07.3]} 47... d4 {[%clk 0:00:27.4]} 48. Bf6 {[%clk 0:00:06.3]} 48...
d3 {[%clk 0:00:27.6]} 49. Bg5 {[%clk 0:00:06.6]} 49... Nc3 {[%clk 0:00:25.4]}
50. Bh6 {[%clk 0:00:03.4]} 50... Nd5 {[%clk 0:00:25.1]} 51. b5 {[%clk
0:00:02.8]} 51... Nc3 {[%clk 0:00:23.8]} 52. c6 {[%clk 0:00:02.9]} 52... bxc6
{[%clk 0:00:24.1]} 53. bxc6 {[%clk 0:00:03.3]} 53... Nb5 {[%clk 0:00:22.7]} 54.
Bd2 {[%clk 0:00:03.2]} 54... Kd5 {[%clk 0:00:21.1]} 55. f3 {[%clk 0:00:02.7]}
55... gxf3 {[%clk 0:00:19.7]} 56. Kxh3 {[%clk 0:00:02.7]} 56... Kxc6 {[%clk
0:00:20.1]} 57. Kg3 {[%clk 0:00:03.1]} 57... Nd4 {[%clk 0:00:20.7]} 58. Kf2
{[%clk 0:00:02.6]} 58... Kb5 {[%clk 0:00:20.7]} 59. Be3 {[%clk 0:00:02.3]} 59...
Kc4 {[%clk 0:00:20.4]} 60. Ke1 {[%clk 0:00:01.3]} 60... Nc2+ {[%clk 0:00:20.6]}
61. Kd2 {[%clk 0:00:01.3]} 61... Nxe3 {[%clk 0:00:21.5]} 62. Kxe3 {[%clk
0:00:01.5]} 62... Kc3 {[%clk 0:00:22.4]} 0-1

[Event "*** SCC Grand Prix: Titled Tuesday Blitz"]
[Site "Chess.com"]
[Date "2020.07.07"]
[Round "4"]
[White "Belka1989"]
[Black "FrenchMonster2002"]
[Result "0-1"]
[WhiteElo "2275"]
[BlackElo "2446"]
[TimeControl "180+1"]
[EndTime "10:40:55 PDT"]
[Termination "FrenchMonster2002 won by checkmate"]

1. d4 {[%clk 0:03:00.9]} 1... Nf6 {[%clk 0:02:57.8]} 2. Nf3 {[%clk 0:03:00]}
2... g6 {[%clk 0:02:58.1]} 3. Bf4 {[%clk 0:02:59.4]} 3... Bg7 {[%clk 0:02:58.6]}
4. e3 {[%clk 0:03:00.1]} 4... O-O {[%clk 0:02:59.2]} 5. Be2 {[%clk 0:02:59.6]}
5... c5 {[%clk 0:02:59.4]} 6. c3 {[%clk 0:02:59.8]} 6... b6 {[%clk 0:02:59.4]}
7. h3 {[%clk 0:02:56]} 7... d6 {[%clk 0:02:59.7]} 8. Nbd2 {[%clk 0:02:56.1]}
8... Bb7 {[%clk 0:02:59.8]} 9. O-O {[%clk 0:02:56.2]} 9... Nbd7 {[%clk
0:03:00.4]} 10. Re1 {[%clk 0:02:52.8]} 10... a6 {[%clk 0:03:00.5]} 11. a4 {[%clk
0:02:49.9]} 11... Ra7 {[%clk 0:03:00.7]} 12. Qb3 {[%clk 0:02:46.4]} 12... Qa8
{[%clk 0:02:59.8]} 13. Bf1 {[%clk 0:02:34.1]} 13... Ne4 {[%clk 0:02:59.8]} 14.
Nxe4 {[%clk 0:02:22.4]} 14... Bxe4 {[%clk 0:03:00.7]} 15. Nd2 {[%clk 0:02:17.3]}
15... Bc6 {[%clk 0:02:53]} 16. Bg3 {[%clk 0:02:01]} 16... Nf6 {[%clk 0:02:49.5]}
17. Rad1 {[%clk 0:01:27.2]} 17... Rb8 {[%clk 0:02:42.6]} 18. c4 {[%clk
0:01:03.9]} 18... Ne4 {[%clk 0:02:28]} 19. Nxe4 {[%clk 0:00:41.8]} 19... Bxe4
{[%clk 0:02:28.9]} 20. d5 {[%clk 0:00:38.9]} 20... Bf5 {[%clk 0:02:29.3]} 21. e4
{[%clk 0:00:34]} 21... Bd7 {[%clk 0:02:29.9]} 22. e5 {[%clk 0:00:31.7]} 22... b5
{[%clk 0:02:16.6]} 23. axb5 {[%clk 0:00:23.6]} 23... axb5 {[%clk 0:02:17.5]} 24.
exd6 {[%clk 0:00:20.4]} 24... bxc4 {[%clk 0:02:18]} 25. Qxc4 {[%clk 0:00:08.8]}
25... exd6 {[%clk 0:02:18.3]} 26. Bxd6 {[%clk 0:00:06.1]} 26... Rxb2 {[%clk
0:02:18.5]} 27. Re7 {[%clk 0:00:05]} 27... Ba4 {[%clk 0:01:49.5]} 28. Rxa7
{[%clk 0:00:04.7]} 28... Qxa7 {[%clk 0:01:49.9]} 29. Ra1 {[%clk 0:00:04.9]}
29... Qd7 {[%clk 0:01:01.9]} 30. Rxa4 {[%clk 0:00:01.8]} 30... Qxd6 {[%clk
0:01:01.2]} 31. Ra8+ {[%clk 0:00:02.5]} 31... Bf8 {[%clk 0:01:01.3]} 32. Ra5
{[%clk 0:00:03.3]} 32... Rd2 {[%clk 0:00:56]} 33. Ra6 {[%clk 0:00:03.9]} 33...
Qxd5 {[%clk 0:00:54.8]} 34. Qxd5 {[%clk 0:00:04.4]} 34... Rxd5 {[%clk
0:00:55.7]} 35. Rc6 {[%clk 0:00:05.1]} 35... Rd1 {[%clk 0:00:52.7]} 36. g3
{[%clk 0:00:05.7]} 36... Kg7 {[%clk 0:00:43]} 37. Kg2 {[%clk 0:00:06.1]} 37...
Be7 {[%clk 0:00:39.6]} 38. Be2 {[%clk 0:00:06.3]} 38... Rd2 {[%clk 0:00:39]} 39.
Bf3 {[%clk 0:00:06.7]} 39... Bf6 {[%clk 0:00:37.1]} 40. Rxc5 {[%clk 0:00:06.3]}
40... Bd4 {[%clk 0:00:36.7]} 41. Rd5 {[%clk 0:00:06.3]} 41... Rxf2+ {[%clk
0:00:35.1]} 42. Kh1 {[%clk 0:00:06.6]} 42... Rxf3 {[%clk 0:00:30.7]} 43. Rxd4
{[%clk 0:00:06.8]} 43... Rxg3 {[%clk 0:00:31.3]} 44. Kh2 {[%clk 0:00:07.6]}
44... Ra3 {[%clk 0:00:31.2]} 45. Rd7 {[%clk 0:00:07.5]} 45... h5 {[%clk
0:00:31]} 46. Rb7 {[%clk 0:00:07.2]} 46... g5 {[%clk 0:00:29.9]} 47. Rb5 {[%clk
0:00:07]} 47... Kg6 {[%clk 0:00:29.9]} 48. Rb6+ {[%clk 0:00:07.6]} 48... f6
{[%clk 0:00:30.6]} 49. Rc6 {[%clk 0:00:08.1]} 49... Re3 {[%clk 0:00:26.4]} 50.
Rd6 {[%clk 0:00:07.4]} 50... Kf5 {[%clk 0:00:26.4]} 51. Rb6 {[%clk 0:00:06.9]}
51... g4 {[%clk 0:00:23.1]} 52. hxg4+ {[%clk 0:00:07.8]} 52... hxg4 {[%clk
0:00:23.6]} 53. Rb5+ {[%clk 0:00:08.3]} 53... Kf4 {[%clk 0:00:22.8]} 54. Rb4+
{[%clk 0:00:08.5]} 54... Kf3 {[%clk 0:00:22.1]} 55. Rb6 {[%clk 0:00:08.9]} 55...
f5 {[%clk 0:00:22.3]} 56. Rf6 {[%clk 0:00:08]} 56... f4 {[%clk 0:00:21.8]} 57.
Rf8 {[%clk 0:00:06.7]} 57... Re1 {[%clk 0:00:19.2]} 58. Rf7 {[%clk 0:00:02.8]}
58... g3+ {[%clk 0:00:19.2]} 59. Kh3 {[%clk 0:00:02.7]} 59... Rh1# {[%clk
0:00:19.7]} 0-1